bitfinex-derivatives/quotes_ETHF0:USTF0_20260115
["timestamp","ask_amount","ask_price","bid_price","bid_amount"]
[1768512349737,0.78921677,3300.6,3299.0,0.77300197]
[1768512349938,0.91564441,3300.5,3299.0,0.77300197]
[1768512350134,0.91564441,3300.4,3299.0,0.77300197]
[1768512350340,0.78921677,3300.6,3299.0,0.77300197]
[1768512350542,0.91562542,3300.5,3299.0,0.77300197]
[1768512350846,0.91562542,3300.4,3299.0,0.77300197]
[1768512351047,0.78921677,3300.6,3299.0,0.77300197]
[1768512351247,0.91561054,3300.5,3299.0,0.77300197]
[1768512351448,0.91561054,3300.4,3299.0,0.77300197]
[1768512351748,0.78921677,3300.6,3299.0,0.77300197]
[1768512351950,0.91561058,3300.5,3299.0,0.77300197]
[1768512352247,0.91561058,3300.4,3299.0,0.77300197]
[1768512352445,0.78921677,3300.6,3299.0,0.77300197]
[1768512352651,0.91559584,3300.5,3299.0,0.77300197]
[1768512352850,0.91559584,3300.4,3299.0,0.77300197]
[1768512353044,0.78921677,3300.6,3299.0,0.77300197]
[1768512353246,0.91558124,3300.5,3299.0,0.77300197]
[1768512353546,0.91558124,3300.4,3299.0,0.77300197]
[1768512353754,0.78921677,3300.6,3299.0,0.77300197]
[1768512353957,0.91558122,3300.5,3299.0,0.77300197]
[1768512354148,0.91558122,3300.4,3299.0,0.77300197]
[1768512354446,0.78921677,3300.6,3299.0,0.77300197]
[1768512354648,0.91556932,3300.5,3299.0,0.77300197]
[1768512354850,0.91556932,3300.4,3299.0,0.77300197]
[1768512355149,0.78921677,3300.6,3299.0,0.77300197]
[1768512355357,0.91555943,3300.5,3299.0,0.77300197]
[1768512355548,0.91555943,3300.4,3299.0,0.77300197]
[1768512355744,0.78921677,3300.6,3299.0,0.77300197]
[1768512355943,0.91167234,3300.5,3299.0,0.77300197]
[1768512356149,0.91167234,3300.4,3299.0,0.77300197]
[1768512356349,0.78921677,3300.6,3299.0,0.77300197]
[1768512356546,0.91166444,3300.5,3299.0,0.77300197]
[1768512356748,0.91166444,3300.4,3299.0,0.77300197]
[1768512356949,0.78921677,3300.6,3299.0,0.77300197]
[1768512357148,0.91166503,3300.5,3299.0,0.77300197]
[1768512357348,0.91166503,3300.4,3299.0,0.77300197]
[1768512357550,0.78921677,3300.6,3299.0,0.77300197]
[1768512357849,0.91166025,3300.5,3299.0,0.77300197]
[1768512358051,0.78921677,3300.6,3299.0,0.77300197]
[1768512358250,0.9116345,3300.5,3299.0,0.77300197]
[1768512358442,0.78921677,3300.6,3299.0,0.77300197]
[1768512358643,0.9116345,3300.5,3299.0,0.77300197]
[1768512358843,0.78921677,3300.6,3299.0,0.77300197]
[1768512359044,0.80079442,3300.4,3299.0,0.77300197]
[1768512359245,0.80079442,3300.4,3298.9,4.25745962]
[1768512359552,0.80079442,3300.4,3298.7,3.032]
[1768512363356,0.80079442,3300.3,3299.0,1.22541707]
[1768512365842,2.02621149,3300.2,3298.8,1.22541707]
[1768512366158,2.02621149,3300.2,3299.0,1.22541707]
[1768512366654,0.80079442,3300.2,3299.0,1.22541707]
[1768512368851,0.80079442,3300.2,3298.6,4.75053759]
[1768512369049,0.80079442,3300.2,3298.9,1.22541707]
[1768512369249,2.02621149,3300.2,3298.6,3.97740496]
[1768512369447,2.02621149,3300.2,3298.8,1.22541707]
[1768512369847,0.80079442,3300.1,3298.8,1.22541707]
[1768512375359,0.80079442,3300.1,3299.0,1.22541707]
[1768512379364,0.80079442,3300.1,3298.6,0.79379496]
[1768512379555,0.80079442,3300.1,3298.9,1.22541707]
[1768512382271,2.02621149,3300.1,3298.6,0.79379496]
[1768512382453,1.22541707,3300.1,3298.7,1.22541707]
[1768512382657,0.77342118,3300.0,3298.7,1.22541707]
[1768512383268,1.22541707,3300.1,3298.8,0.80570801]
[1768512383465,1.37694707,3300.3,3298.8,0.80570801]
[1768512383660,1.37694707,3300.3,3298.9,1.22541707]
[1768512387268,2.14181589,3300.3,3298.9,1.22541707]
[1768512388169,0.15154,3300.2,3298.9,1.22541707]
[1768512388674,0.91640882,3300.2,3298.9,1.22541707]
[1768512390467,0.15154,3300.1,3298.9,1.22541707]
[1768512390672,0.91640882,3300.1,3298.9,1.22541707]
[1768512395774,0.15154,3300.1,3298.9,1.22541707]
[1768512401288,0.15154,3300.1,3299.0,0.81295905]
[1768512402780,0.15154,3300.1,3298.6,0.81295905]
[1768512402980,0.15154,3300.1,3298.8,1.22541707]
[1768512404574,1.37695707,3300.1,3298.6,0.81295905]
[1768512406372,1.37695707,3300.1,3298.8,1.22541707]
[1768512410990,1.37695707,3300.1,3298.7,1.22541707]
[1768512413495,1.37695707,3300.1,3298.7,2.04153282]
[1768512418394,1.37695707,3300.1,3298.9,1.22541707]
[1768512420497,1.37695707,3300.1,3298.7,0.81611575]
[1768512420794,1.37695707,3300.1,3298.8,1.22541707]
[1768512422096,0.15154,3300.1,3298.8,1.22541707]
[1768512425007,0.15154,3300.1,3299.0,1.22541707]
[1768512425311,0.15154,3300.1,3298.7,0.81611575]
[1768512453131,0.15154,3300.1,3298.8,0.81174633]
[1768512455028,0.76724129,3300.9,3299.2,0.81174633]
[1768512455235,1.68069595,3300.8,3299.2,0.81174633]
[1768512455423,0.91345466,3300.7,3299.2,0.81174633]
[1768512455623,0.91345466,3300.6,3299.2,0.81174633]
[1768512455826,0.91345466,3300.5,3299.2,0.81174633]
[1768512456029,0.76724129,3300.8,3299.2,0.81174633]
[1768512456231,0.9130507,3300.7,3299.2,0.81174633]
[1768512456432,0.9130507,3300.6,3299.2,0.81174633]
[1768512456643,0.9130507,3300.5,3299.2,0.81174633]
[1768512456934,0.15152,3300.6,3299.2,0.81174633]
[1768512457128,1.0644253,3300.5,3299.2,0.81174633]
[1768512457327,0.15153,3300.5,3299.2,0.81174633]
[1768512468035,0.15153,3300.4,3299.2,0.81174633]
[1768512483064,0.15154,3300.3,3299.2,0.81174633]
[1768512485464,0.15154,3300.3,3298.6,6.98874263]
[1768512485465,0.15154,3300.3,3298.8,0.79296081]
[1768512485760,0.15155,3300.1,3298.8,0.79296081]
[1768512486466,1.22543935,3300.0,3298.8,0.79296081]
[1768512489661,0.15155,3300.1,3298.8,0.79296081]
[1768512494266,0.15155,3300.1,3298.9,2.01840016]
[1768512500375,0.15155,3300.1,3298.9,0.79296081]
[1768512514891,0.15155,3300.1,3299.1,2.04489077]
[1768512515184,0.15155,3300.1,3299.2,0.81945142]
[1768512516985,0.15155,3300.1,3299.4,0.81945142]
[1768512517282,0.15152,3300.6,3299.4,0.81945142]
[1768512517488,0.91352274,3300.5,3299.4,0.81945142]
[1768512517784,0.15152,3300.6,3299.4,0.81945142]
[1768512517978,0.91352272,3300.5,3299.4,0.81945142]
[1768512518179,0.15152,3300.6,3299.4,0.81945142]
[1768512519392,0.15152,3300.6,3299.5,1.22543935]
[1768512519792,0.15152,3300.6,3299.4,0.81945142]
[1768512521991,1.37696935,3300.5,3299.4,0.81945142]
[1768512522189,0.15153,3300.4,3299.4,0.81945142]
[1768512522381,1.22543935,3300.3,3299.1,1.22543935]
[1768512523991,0.15153,3300.4,3299.1,1.22543935]
[1768512525594,0.15153,3300.3,3299.0,0.81945142]
[1768512525996,0.15153,3300.3,3299.1,2.04489077]
[1768512526198,0.15153,3300.3,3299.3,1.22543935]
[1768512529318,0.15153,3300.3,3299.1,2.04489077]
[1768512533418,0.15154,3300.2,3299.1,2.04489077]
[1768512536322,0.15154,3300.2,3299.1,0.81945142]
[1768512542525,0.15154,3300.2,3299.2,1.22543935]
[1768512542723,0.15154,3300.2,3299.3,0.79716651]
[1768512569843,0.15152,3300.7,3299.3,0.79716651]
[1768512570034,0.9108823,3300.6,3299.3,0.79716651]
[1768512570235,0.9108823,3300.5,3299.3,0.79716651]
[1768512578549,0.15152,3300.6,3299.3,0.79716651]
[1768512578850,0.91086378,3300.5,3299.3,0.79716651]
[1768512579043,0.15152,3300.6,3299.3,0.79716651]
[1768512579241,0.91084627,3300.5,3299.3,0.79716651]
[1768512579442,0.15152,3300.6,3299.3,0.79716651]
[1768512579748,0.91084626,3300.5,3299.3,0.79716651]
[1768512579941,0.15152,3300.6,3299.3,0.79716651]
[1768512580141,0.91084769,3300.5,3299.3,0.79716651]
[1768512580345,0.15152,3300.6,3299.3,0.79716651]
[1768512580545,0.91083815,3300.5,3299.3,0.79716651]
[1768512580745,0.15152,3300.6,3299.3,0.79716651]
[1768512581042,0.91083815,3300.5,3299.3,0.79716651]
[1768512581243,0.15152,3300.6,3299.3,0.79716651]
[1768512581544,0.9108265,3300.5,3299.3,0.79716651]
[1768512581744,0.15152,3300.6,3299.3,0.79716651]
[1768512581941,0.91082721,3300.5,3299.3,0.79716651]
[1768512582141,0.15152,3300.6,3299.3,0.79716651]
[1768512582442,0.91082389,3300.5,3299.3,0.79716651]
[1768512582646,0.15152,3300.6,3299.3,0.79716651]
[1768512582940,0.91082532,3300.5,3299.3,0.79716651]
[1768512583143,0.15152,3300.6,3299.3,0.79716651]
[1768512583343,0.91081898,3300.5,3299.3,0.79716651]
[1768512583536,0.15152,3300.6,3299.3,0.79716651]
[1768512583833,0.9108146,3300.5,3299.3,0.79716651]
[1768512584136,0.15152,3300.6,3299.3,0.79716651]
[1768512584338,0.91080464,3300.5,3299.3,0.79716651]
[1768512584638,0.15152,3300.6,3299.3,0.79716651]
[1768512584934,0.91080464,3300.5,3299.3,0.79716651]
[1768512585135,0.15152,3300.6,3299.3,0.79716651]
[1768512585354,0.91079806,3300.5,3299.3,0.79716651]
[1768512585646,0.15152,3300.6,3299.3,0.79716651]
[1768512585850,0.9107981,3300.5,3299.3,0.79716651]
[1768512586039,0.15152,3300.6,3299.3,0.79716651]
[1768512586239,0.9107981,3300.5,3299.3,0.79716651]
[1768512586444,0.15152,3300.6,3299.3,0.79716651]
[1768512586644,0.91079284,3300.5,3299.3,0.79716651]
[1768512586945,0.15152,3300.6,3299.3,0.79716651]
[1768512587133,0.91079284,3300.5,3299.3,0.79716651]
[1768512587337,0.15152,3300.6,3299.3,0.79716651]
[1768512587547,0.91078863,3300.5,3299.3,0.79716651]
[1768512587747,0.15152,3300.6,3299.3,0.79716651]
[1768512587949,0.91078863,3300.5,3299.3,0.79716651]
[1768512588148,0.15152,3300.6,3299.3,0.79716651]
[1768512588349,0.91078538,3300.5,3299.3,0.79716651]
[1768512588550,0.15152,3300.6,3299.3,0.79716651]
[1768512588741,0.91078538,3300.5,3299.3,0.79716651]
[1768512588940,0.15152,3300.6,3299.3,0.79716651]
[1768512589142,0.91078525,3300.5,3299.3,0.79716651]
[1768512589342,0.15152,3300.6,3299.3,0.79716651]
[1768512589541,0.91078219,3300.5,3299.3,0.79716651]
[1768512589743,0.15153,3300.5,3299.3,0.79716651]
[1768512592655,0.15153,3300.4,3299.3,0.79716651]
[1768512602578,0.15151,3300.9,3299.3,0.79716651]
[1768512603581,0.15151,3300.8,3299.3,0.79716651]
[1768512603777,0.15152,3300.7,3299.3,0.79716651]
[1768512605975,0.15152,3300.6,3299.3,0.79716651]
[1768512607377,0.15152,3300.6,3299.4,1.22510648]
[1768512611277,0.15152,3300.6,3299.3,0.79716651]
[1768512619580,1.37663648,3300.5,3299.3,0.79716651]
[1768512620083,1.22510648,3300.3,3299.3,0.79716651]
[1768512624891,1.22510648,3300.3,3298.8,0.92017044]
[1768512625185,1.22510648,3300.3,3298.8,0.76857044]
[1768512625379,0.82418771,3300.2,3298.8,0.76857044]
[1768512625588,1.22510648,3299.6,3298.4,0.76857044]
[1768512625790,1.22510648,3299.3,3298.4,0.76857044]
[1768512626483,1.22510648,3299.3,3298.3,0.00290351]
[1768512626678,1.22510648,3299.5,3298.3,0.00290351]
[1768512627481,1.22510648,3300.0,3298.3,0.00290351]
[1768512627482,1.22510648,3299.0,3298.3,0.00290351]
[1768512627684,1.22510648,3298.7,3297.6,0.77052783]
[1768512628179,1.22510648,3298.9,3297.6,0.77052783]
[1768512628379,0.00312918,3299.0,3297.6,0.77052783]
[1768512628578,0.00312918,3299.0,3297.6,0.77313338]
[1768512630088,0.00312918,3299.0,3297.8,0.77052783]
[1768512631382,0.00312918,3299.0,3298.3,0.77052783]
[1768512631582,0.00312918,3299.0,3297.6,0.00260555]
[1768512631583,0.15156,3299.7,3298.4,1.99563431]
[1768512632489,0.15486515,3299.7,3298.4,1.99563431]
[1768512633589,0.15486515,3299.7,3298.4,0.77052783]
[1768512634087,0.00330515,3299.7,3298.6,0.77052783]
[1768512636386,1.22510648,3299.5,3298.6,0.77052783]
[1768512637293,0.00330515,3299.7,3298.6,0.77052783]
[1768512640291,0.00330515,3299.7,3298.6,1.99563431]
[1768512640591,0.00330515,3299.7,3298.7,0.77052783]
[1768512642187,1.22510648,3299.6,3298.2,1.22510648]
[1768512642386,1.22510648,3299.6,3298.3,0.77052783]
[1768512642589,1.37667648,3299.6,3298.3,0.77052783]
[1768512642990,1.22510648,3299.0,3297.7,0.77052783]
[1768512643689,0.1516,3298.9,3297.7,0.77052783]
[1768512644794,0.15162,3298.5,3297.6,0.00260555]
[1768512646188,1.22510648,3298.1,3297.6,1e-08]
[1768512646391,1.22510648,3298.1,3296.9,0.77052783]
[1768512646593,1.37673648,3298.3,3296.9,1.99563431]
[1768512647400,0.15163,3298.3,3297.0,0.77052783]
[1768512648301,1.37673648,3298.3,3297.0,0.77052783]
[1768512649502,1.22510648,3298.1,3297.0,0.77052783]
[1768512655207,1.22510648,3298.6,3297.3,1.22510648]
[1768512656306,0.1516,3298.9,3297.4,0.78552961]
[1768512656509,1.22510648,3298.8,3297.4,0.78552961]
[1768512658805,1.22510648,3298.5,3297.4,0.78552961]
[1768512659005,1.22510648,3298.3,3297.0,1.22510648]
[1768512659709,1.22510648,3298.0,3296.9,0.78786034]
[1768512661404,0.15163,3298.3,3296.9,0.78786034]
[1768512661405,1.22510648,3298.2,3296.9,0.78786034]
[1768512661705,1.37671648,3298.7,3297.3,0.78552961]
[1768512663304,0.15161,3298.6,3297.3,0.78552961]
[1768512664104,1.22510648,3298.4,3297.3,0.78552961]
[1768512664305,0.15162,3298.5,3297.3,0.78552961]
[1768512664504,1.37672648,3298.5,3297.3,0.78552961]
[1768512666706,0.15162,3298.5,3297.3,0.78552961]
[1768512671719,0.15159,3299.0,3297.3,0.78552961]
[1768512674410,0.96149845,3298.9,3297.3,0.78552961]
[1768512688921,0.97675411,3298.8,3297.3,0.78552961]
[1768512689224,0.82515411,3298.6,3297.1,0.15168]
[1768512689426,0.82515411,3298.6,3296.9,0.82629759]
[1768512694230,0.82515411,3299.1,3297.2,0.82396686]
[1768512694730,0.82515411,3299.1,3297.3,0.82396686]
[1768512700740,0.82515411,3299.1,3297.3,4.62909949]
[1768512703245,0.82515411,3299.1,3297.4,0.82396686]
[1768512706655,0.97674411,3299.1,3297.4,0.82396686]
[1768512706850,0.97675411,3298.9,3297.2,3.80513263]
[1768512707254,0.97675411,3298.9,3297.0,7.81377949]
[1768512707455,0.97675411,3298.9,3297.1,0.82396686]
[1768512710057,0.1516,3298.9,3297.1,0.82396686]
[1768512714760,0.1516,3298.9,3297.1,0.97564686]
[1768512714956,0.1516,3298.9,3297.3,0.78576434]
[1768512715366,0.95816491,3299.4,3297.6,0.78576434]
[1768512722065,0.90933123,3299.3,3297.6,0.78576434]
[1768512722257,0.80658491,3299.3,3297.6,0.78576434]
[1768512726062,0.15158,3299.4,3297.9,0.78576434]
[1768512726863,0.80989006,3299.7,3297.9,0.78576434]
[1768512729576,1.22594567,3299.6,3298.2,1.22594567]
[1768512732370,1.22594567,3298.6,3297.7,3.80513263]
[1768512732576,1.22594567,3298.8,3297.5,1.22594567]
[1768512732872,1.22594567,3299.0,3297.5,1.22594567]
[1768512734376,1.22594567,3299.0,3297.7,1.22594567]
[1768512735676,1.22594567,3299.0,3297.6,1.22594567]
[1768512740584,0.80658491,3299.1,3297.4,0.78576434]
[1768512740781,1.22594567,3298.9,3297.5,1.22594567]
[1768512741187,0.80658491,3299.1,3297.5,1.22594567]
[1768512741487,2.03253058,3299.1,3297.7,1.22594567]
[1768512742386,0.80658491,3299.1,3297.7,1.22594567]
[1768512742586,0.15158,3299.3,3297.9,1.22594567]
[1768512742788,2.00880746,3299.5,3298.1,1.22594567]
[1768512745684,1.22594567,3299.3,3297.9,1.22594567]
[1768512746483,1.22594567,3299.1,3297.7,2.18964502]
[1768512750692,2.04525878,3299.4,3297.7,2.18964502]
[1768512751494,2.04525878,3299.4,3298.0,1.22594567]
[1768512752287,0.81931311,3299.4,3298.0,1.22594567]
[1768512765498,1.22594567,3299.2,3298.0,1.22594567]
[1768512776210,0.81931311,3299.4,3298.0,1.22594567]
[1768512777104,0.81931311,3299.4,3298.0,1.96810443]
[1768512778012,0.15157,3299.5,3298.2,1.22594567]
[1768512791334,0.15157,3299.5,3298.0,0.74215876]
[1768512796030,0.9311822,3299.5,3298.0,0.74215876]
[1768512810142,0.00330515,3299.7,3298.4,1.37751303]
[1768512811839,0.00330515,3299.7,3298.3,0.73227296]
[1768512825858,0.00330515,3299.7,3298.4,1.22589303]
[1768512828253,0.00330515,3299.7,3298.5,0.73227296]
[1768512835565,0.00330515,3299.7,3298.2,0.15163]
[1768512836859,0.7171636,3299.7,3298.1,0.7235037]
[1768512838660,0.00330515,3299.7,3298.1,0.7235037]
[1768512839760,0.00330515,3299.7,3298.3,1.94939673]
[1768512839958,0.00330515,3299.7,3298.4,0.7235037]
[1768512840660,0.00330515,3299.7,3298.7,1.22589303]
[1768512844568,0.00330515,3299.7,3298.4,0.7235037]
[1768512847874,0.15155,3300.1,3298.7,1.94939673]
[1768512848572,0.15155,3300.1,3298.7,0.7235037]
[1768512848763,0.15545913,3300.1,3298.7,0.7235037]
[1768512850666,0.15545913,3300.1,3298.7,1.94939673]
[1768512851275,0.15545913,3300.1,3299.0,1.22525301]
[1768512858981,0.15545913,3300.1,3298.7,0.7235037]
[1768512859180,0.15545913,3300.1,3299.0,1.22525301]
[1768512875101,0.15151,3300.8,3299.9,1.22525301]
[1768512875497,0.15151,3300.8,3299.7,1.22525301]
[1768512876190,1.22525301,3300.7,3299.7,0.00389403]
[1768512876399,1.22525301,3300.5,3299.7,0.00389403]
[1768512876803,2.0610762,3300.7,3299.7,0.00389403]
[1768512881104,1.22525301,3300.5,3299.7,0.00389403]
[1768512882803,0.15152,3300.6,3299.7,0.00389403]
[1768512883105,1.22525301,3300.5,3299.7,0.00389403]
[1768512886503,1.22525301,3299.8,3298.7,0.67086637]
[1768512887010,1.22525301,3300.1,3298.7,0.67086637]
[1768512887502,1.22525301,3300.1,3298.7,0.6733735]
[1768512888999,1.22525301,3300.1,3298.7,1.89862651]
[1768512889603,1.22525301,3300.1,3298.7,0.6733735]
[1768512889604,1.9095562,3300.1,3298.7,0.6733735]
[1768512889810,1.22525301,3299.3,3298.7,0.00250713]
[1768512890010,1.22525301,3299.6,3298.7,0.00250713]
[1768512890904,0.83586319,3299.7,3298.7,0.00250713]
[1768512893213,0.15156,3299.7,3298.7,1.22776014]
[1768512893513,0.15153,3300.4,3299.0,1.22525301]
[1768512893700,1.05641843,3300.3,3298.9,1.22525301]
[1768512893907,0.15153,3300.3,3298.9,1.22525301]
[1768512894501,0.15153,3300.3,3298.9,1.88997649]
[1768512894914,0.15153,3300.3,3299.2,1.22525301]
[1768512896319,0.15153,3300.3,3299.2,1.88997649]
[1768512899621,0.15153,3300.3,3299.3,0.66472348]
[1768512902427,0.15153,3300.3,3298.9,1.88997649]
[1768512902926,0.15153,3300.3,3299.0,0.66472348]
[1768512903226,0.15153,3300.3,3299.1,1.88997649]
[1768512905926,0.15153,3300.3,3299.2,0.66472348]
[1768512944858,1.22519048,3300.2,3298.8,0.66586105]
[1768512945158,0.67809249,3300.2,3298.8,0.66586105]
[1768512945360,0.15154,3300.1,3298.8,0.66586105]
[1768512973397,1.22556396,3299.9,3298.8,0.66586105]
[1768512983506,0.15154,3300.1,3298.8,0.66586105]
[1768512992327,1.22556396,3300.2,3298.9,0.67207756]
[1768512993320,0.15153,3300.5,3299.1,1.89764152]
[1768512993515,0.15153,3300.5,3299.2,0.67207756]
[1768512998826,1.22556396,3300.3,3299.2,0.67207756]
[1768513001223,0.15153,3300.5,3299.2,0.67207756]
[1768513001424,1.22556396,3300.3,3299.2,0.67207756]
[1768513005623,1.22556396,3300.1,3298.8,0.67207756]
[1768513005929,1.22556396,3299.5,3298.7,0.00250713]
[1768513006819,1.22556396,3299.7,3298.7,0.00250713]
[1768513023347,1.87459465,3299.7,3298.7,0.00250713]
[1768513026646,1.22556396,3299.7,3298.7,0.00250713]
[1768513029264,0.80057069,3300.1,3298.7,0.00250713]
[1768513029457,0.15154,3300.1,3298.8,1.22556396]
[1768513030259,1.37710396,3300.1,3298.8,1.22556396]
[1768513035458,0.15154,3300.1,3298.7,0.00250713]
[1768513038764,0.64903069,3300.2,3298.7,0.00250713]
[1768513052782,0.64903069,3300.2,3298.7,4.38329046]
[1768513056483,0.64903069,3300.2,3298.7,4.53490046]
[1768513073402,0.64903069,3300.2,3298.8,3.80513263]
[1768513083419,0.15153,3300.5,3298.9,0.54928963]
[1768513083914,0.65458904,3300.5,3298.9,0.54928963]
[1768513086321,0.50305904,3300.4,3298.9,0.54928963]
[1768513097325,1.22521212,3300.3,3298.9,1.77450175]
[1768513103633,0.50305904,3300.4,3298.9,1.77450175]
[1768513103935,1.22521212,3300.2,3298.9,1.77450175]
[1768513104234,1.22521212,3300.2,3298.9,0.54928963]
[1768513106730,0.50305904,3300.4,3299.1,1.22521212]
[1768513106937,1.72827116,3300.4,3299.1,1.22521212]
[1768513107637,0.50305904,3300.4,3299.1,1.22521212]
[1768513108633,1.22521212,3300.6,3299.1,1.22521212]
[1768513108834,3.034,3302.3,3300.2,1.22521212]
[1768513108835,0.15149,3301.4,3300.2,1.22521212]
[1768513109135,1.22521212,3301.3,3300.0,1.22521212]
[1768513109322,1.22521212,3301.3,3299.7,0.48595241]
[1768513109323,1.22521212,3301.3,3299.8,1.71116453]
[1768513109831,1.22746368,3301.3,3299.8,1.71116453]
[1768513110230,0.00225156,3301.3,3300.1,1.22521212]
[1768513110429,0.00225156,3301.3,3300.3,1.22521212]
[1768513111533,0.00225156,3301.3,3300.1,1.22521212]
[1768513113629,0.00225156,3301.3,3300.2,0.48595241]
[1768513116537,1.22521212,3301.2,3300.2,0.48595241]
[1768513116850,1.22746368,3301.3,3300.2,0.48595241]
[1768513118242,1.22521212,3301.1,3300.2,0.48595241]
[1768513119838,1.22521212,3301.1,3299.7,0.15156]
[1768513120145,1.22521212,3301.1,3299.8,3.031]
[1768513120345,1.22521212,3301.1,3299.8,3.51695241]
[1768513120546,1.22521212,3301.1,3299.9,0.48595241]
[1768513123346,1.22521212,3301.2,3299.9,0.48595241]
[1768513130055,1.22521212,3301.2,3299.9,1.71116453]
[1768513130251,0.00225156,3301.3,3299.9,1.71116453]
[1768513130448,1.22746368,3301.3,3299.9,1.71116453]
[1768513131862,0.00225156,3301.3,3300.1,1.22521212]
[1768513132239,0.00225156,3301.3,3300.3,1.22521212]
[1768513132955,0.48914043,3302.3,3301.2,1.22521212]
[1768513133157,0.48914043,3302.2,3300.9,1.22521212]
[1768513133358,1.22521212,3302.1,3300.9,1.22521212]
[1768513133549,1.22521212,3302.1,3300.6,1.67968335]
[1768513133947,1.22879406,3302.1,3300.6,1.68256371]
[1768513134655,1.22879406,3302.1,3300.7,0.45447123]
[1768513138151,1.71435255,3302.0,3300.6,1.22809248]
[1768513139562,0.48914043,3302.0,3300.6,1.68256371]
[1768513139753,1.71435255,3302.0,3300.6,1.68256371]
[1768513140660,1.71435255,3302.0,3300.6,0.45735159]
[1768513140860,1.22521212,3301.7,3300.6,0.00288036]
[1768513141060,1.22521212,3301.3,3300.6,0.00288036]
[1768513142052,1.22521212,3301.5,3300.6,0.00288036]
[1768513142664,0.48914043,3301.0,3300.6,0.00288036]
[1768513142850,0.48914043,3301.0,3300.0,3.03]
[1768513143251,0.48914043,3301.0,3299.7,3.95669263]
[1768513143463,0.48914043,3301.0,3299.8,3.03]
[1768513143861,0.48914043,3301.0,3299.8,3.03234288]
[1768513144158,1.71435255,3301.0,3299.8,3.03234288]
[1768513144362,1.22521212,3300.7,3299.8,0.00234288]
[1768513146070,0.48914043,3300.6,3299.8,0.00234288]
[1768513147967,1.71435255,3300.5,3299.8,0.00234288]
[1768513148167,1.71435255,3300.5,3299.2,1.22521212]
[1768513148559,0.48914043,3300.4,3299.2,1.22521212]
[1768513149171,0.48914043,3300.4,3299.2,1.22749441]
[1768513151271,0.48914043,3300.4,3299.2,0.00228229]
[1768513151663,1.71435255,3300.3,3299.2,0.00228229]
[1768513152073,0.48914043,3300.3,3299.2,0.00228229]
[1768513153374,0.48914043,3300.3,3299.3,1.22521212]
[1768513159375,0.48914043,3300.3,3299.2,0.00228229]
[1768513162279,0.48651785,3300.7,3299.2,0.00228229]
[1768513164580,0.63803785,3300.7,3299.2,0.00228229]
[1768513164778,0.48651785,3300.6,3299.2,0.00228229]
[1768513202500,0.63803785,3300.6,3299.2,0.00228229]
[1768513202799,0.47151971,3300.2,3298.7,3.80513263]
[1768513203690,0.47151971,3300.2,3298.6,3.80513263]
[1768513203892,0.47151971,3300.2,3298.7,0.0036696]
[1768513204091,0.47151971,3300.9,3298.9,0.47229304]
[1768513204291,0.1515,3301.0,3298.9,0.47229304]
[1768513204292,0.47151971,3300.7,3298.9,0.47229304]
[1768513204503,0.47151971,3300.7,3298.9,4.27742567]
[1768513204692,0.47151971,3300.7,3299.0,0.47229304]
[1768513204995,0.47151971,3300.7,3299.2,1.22500894]
[1768513205195,0.47151971,3300.7,3299.2,1.69730198]
[1768513205396,0.1515,3301.0,3299.3,0.47229304]
[1768513205702,0.47151971,3300.9,3299.4,3.80513263]
[1768513206592,0.47151971,3300.9,3299.3,4.27742567]
[1768513211503,0.47151971,3300.9,3299.3,3.80513263]
[1768513211700,0.47151971,3300.6,3298.9,3.80513263]
[1768513212605,0.47151971,3300.2,3298.7,3.80880223]
[1768513213004,0.47151971,3300.2,3298.7,0.0036696]
[1768513217110,0.62305971,3300.2,3298.7,0.0036696]
[1768513217300,0.47151971,3300.1,3298.7,0.0036696]
[1768513219614,0.47151971,3299.8,3298.2,3.80513263]
[1768513219807,0.47151971,3299.7,3297.7,12.73536297]
[1768513220202,0.47151971,3299.7,3297.7,3.50429304]
[1768513220407,0.47151971,3299.7,3297.8,0.47229304]
[1768513220707,0.47367593,3299.7,3297.8,0.47447956]
[1768513221414,0.47367593,3299.7,3298.5,1.2256568]
[1768513222709,0.47367593,3299.7,3298.7,1.2256568]
[1768513223608,0.47367593,3299.7,3298.5,1.2256568]
[1768513223814,0.47367593,3299.7,3298.3,1.2256568]
[1768513224113,1.66172779,3299.4,3298.1,1.2256568]
[1768513224612,0.43607099,3299.4,3298.1,1.2256568]
[1768513226209,0.43607099,3299.4,3298.3,1.2256568]
[1768513230015,0.43607099,3299.4,3298.1,1.2256568]
[1768513230218,1.66172779,3299.4,3298.1,1.2256568]
[1768513231614,1.68253874,3299.2,3297.8,1.22784332]
[1768513231821,1.68253874,3299.2,3298.0,1.2256568]
[1768513232621,0.45688194,3299.2,3298.0,1.2256568]
[1768513233212,0.45688194,3299.2,3298.2,1.2256568]
[1768513234524,0.45688194,3299.2,3297.8,0.00218652]
[1768513234724,0.45688194,3299.2,3298.2,1.2256568]
[1768513235428,0.45688194,3299.2,3297.8,0.00218652]
[1768513235624,0.45688194,3299.2,3298.1,1.2256568]
[1768513236127,0.45688194,3299.1,3297.9,1.2256568]
[1768513241426,1.2256568,3299.0,3297.8,0.00218652]
[1768513241726,1.2256568,3298.6,3297.8,0.00218652]
[1768513242133,0.45688194,3298.7,3297.8,0.00218652]
[1768513243731,1.68253874,3298.6,3297.4,3.032]
[1768513243935,1.68253874,3298.6,3297.2,1.67673275]
[1768513244841,1.68253874,3298.6,3297.2,1.67961394]
[1768513245727,1.68253874,3298.6,3297.4,1.2256568]
[1768513245929,0.45688194,3298.6,3297.4,1.2256568]
[1768513246235,0.45688194,3298.6,3297.2,0.45395714]
[1768513246435,0.45688194,3298.6,3297.3,1.2256568]
[1768513246827,1.68253874,3298.6,3297.3,1.2256568]
[1768513249538,1.68253874,3298.6,3297.2,0.00288119]
[1768513249539,1.2256568,3298.4,3297.2,0.00288119]
[1768513250037,1.68253874,3298.4,3297.2,0.00288119]
[1768513250234,0.45688194,3298.4,3297.2,0.00288119]
[1768513250433,1.2256568,3298.5,3297.2,0.00288119]
[1768513251136,1.2256568,3298.7,3297.2,0.00288119]
[1768513251337,1.2256568,3298.7,3297.3,1.2256568]
[1768513256438,1.2256568,3298.7,3297.2,0.00288119]
[1768513256742,1.67785749,3298.7,3297.2,0.00288119]
[1768513258741,0.45220069,3298.6,3297.2,0.00288119]
[1768513258941,1.2256568,3298.5,3297.2,0.00288119]
[1768513260049,1.2256568,3297.7,3297.2,0.00288119]
[1768513260248,1.2256568,3297.7,3296.4,1.3773668]
[1768513260840,1.2256568,3297.7,3296.4,0.15171]
[1768513261042,1.2256568,3297.8,3296.4,1.3773668]
[1768513261241,1.2256568,3297.8,3296.4,1.38064118]
[1768513261748,1.2256568,3297.8,3296.4,0.15498438]
[1768513261949,0.45220069,3297.6,3296.4,0.00327438]
[1768513262148,1.2256568,3298.0,3296.4,1.22893118]
[1768513262450,1.2256568,3299.0,3296.4,1.22893118]
[1768513262451,1.2256568,3298.3,3296.9,0.46320439]
[1768513262751,1.67785749,3298.3,3296.9,0.46320439]
[1768513262944,1.2256568,3298.1,3296.6,1.2256568]